{"text_format":"3","workbook":"xlsx","n_sheets":3,"sheets":["Лист1","Лист2","Лист3"],"read":"whole","date_system":"1900"}

{"sheet":"Лист1","index":0,"n_rows":17,"n_cols":8,"rows_kept":17}
["x","y","z","w","не y","не y *w","не z"]
[0,0,0,0,{"$f":"NOT(B2)","v":true},{"$f":"AND(E2,D2)","v":false},{"$f":"NOT(C2)","v":true},{"$f":"OR(F2,G2,A2)","v":true}]
[0,0,0,1,{"$f":"NOT(B3)","v":true},{"$f":"AND(E3,D3)","v":true},{"$f":"NOT(C3)","v":true},{"$f":"OR(F3,G3,A3)","v":true}]
[0,0,1,0,true,false,false,false]
[0,0,1,1,true,true,false,true]
[0,1,0,0,false,false,true,true]
[0,1,0,1,false,false,true,true]
[0,1,1,0,false,false,false,false]
[0,1,1,1,false,false,false,false]
[1,0,0,0,true,false,true,true]
[1,0,0,1,true,true,true,true]
[1,0,1,0,true,false,false,true]
[1,0,1,1,true,true,false,true]
[1,1,0,0,false,false,true,true]
[1,1,0,1,false,false,true,true]
[1,1,1,0,false,false,false,true]
[1,1,1,1,false,false,false,true]

{"sheet":"Лист2","index":1,"n_rows":0,"n_cols":0,"rows_kept":0}

{"sheet":"Лист3","index":2,"n_rows":0,"n_cols":0,"rows_kept":0}